[Event "Championnat d'Europe Rapide"]
[Date "2024.12.08"]
[White "Robis, Dimitrios"]
[Black "Aizenberg, Benny"]
[WhiteElo "1893"]
[BlackElo "2425"]
[Round "10.39"]
[Result "1/2-1/2"]
[TimeControl "900+10"]

1. d4 {[%emt 00:00:02] [%clk 00:15:17]} f5 {[%emt 00:00:03] [%clk 00:15:18]} 2.
Nf3 {[%emt 00:00:08] [%clk 00:15:18]} Nf6 {[%emt 00:00:02] [%clk 00:15:27]} 3.
g3 {[%emt 00:00:08] [%clk 00:15:20]} g6 {[%emt 00:00:02] [%clk 00:15:35]} 4. Bg2
{[%emt 00:00:05] [%clk 00:15:25]} Bg7 {[%emt 00:00:02] [%clk 00:15:43]} 5. O-O
{[%emt 00:00:04] [%clk 00:15:31]} O-O {[%emt 00:00:03] [%clk 00:15:50]} 6. c4
{[%emt 00:00:04] [%clk 00:15:36]} d6 {[%emt 00:00:02] [%clk 00:15:59]} 7. Nc3
{[%emt 00:00:05] [%clk 00:15:40]} c6 {[%emt 00:00:02] [%clk 00:16:07]} 8. Re1
{[%emt 00:00:27] [%clk 00:15:23]} Qe8 {[%emt 00:00:20] [%clk 00:15:57]} 9. b3
{[%emt 00:00:12] [%clk 00:15:21]} e5 {[%emt 00:00:18] [%clk 00:15:49]} 10. dxe5
{[%emt 00:00:03] [%clk 00:15:28]} dxe5 {[%emt 00:00:02] [%clk 00:15:57]} 11. e4
{[%emt 00:00:36] [%clk 00:15:02]} Nxe4 {[%emt 00:02:54] [%clk 00:13:13]} 12.
Nxe4 {[%emt 00:00:26] [%clk 00:14:46]} fxe4 {[%emt 00:00:03] [%clk 00:13:20]}
13. Ng5 {[%emt 00:00:43] [%clk 00:14:13]} Qe7 {[%emt 00:01:04] [%clk 00:12:26]}
14. Nxe4 {[%emt 00:00:14] [%clk 00:14:09]} Bf5 {[%emt 00:00:03] [%clk 00:12:35]}
15. Bg5 {[%emt 00:03:40] [%clk 00:10:38]} Qc7 {[%emt 00:00:20] [%clk 00:12:25]}
16. Qd6 {[%emt 00:02:06] [%clk 00:08:41]} Qf7 {[%emt 00:00:16] [%clk 00:12:19]}
17. Qd2 {[%emt 00:00:25] [%clk 00:08:27]} Bxe4 {[%emt 00:00:28] [%clk 00:12:01]}
18. Bxe4 {[%emt 00:00:04] [%clk 00:08:32]} Na6 {[%emt 00:00:03] [%clk 00:12:09]}
19. Be3 {[%emt 00:01:06] [%clk 00:07:36]} Nc7 {[%emt 00:01:10] [%clk 00:11:09]}
20. Rad1 {[%emt 00:00:26] [%clk 00:07:20]} Ne6 {[%emt 00:00:02] [%clk 00:11:17]}
21. Qd7 {[%emt 00:01:06] [%clk 00:06:24]} Nd4 {[%emt 00:03:20] [%clk 00:08:06]}
22. Qxf7+ {[%emt 00:00:07] [%clk 00:06:27]} Rxf7 {[%emt 00:00:02] [%clk
00:08:15]} 23. Bxd4 {[%emt 00:00:26] [%clk 00:06:11]} exd4 {[%emt 00:00:03]
[%clk 00:08:22]} 24. f3 {[%emt 00:02:19] [%clk 00:04:02]} a5 {[%emt 00:01:12]
[%clk 00:07:20]} 25. a4 {[%emt 00:00:08] [%clk 00:04:04]} Bf8 {[%emt 00:00:21]
[%clk 00:07:09]} 26. Kg2 {[%emt 00:00:13] [%clk 00:04:01]} Bc5 {[%emt 00:00:11]
[%clk 00:07:09]} 27. h4 {[%emt 00:00:17] [%clk 00:03:53]} Kg7 {[%emt 00:00:29]
[%clk 00:06:50]} 28. h5 {[%emt 00:01:12] [%clk 00:02:50]} Rd8 {[%emt 00:00:33]
[%clk 00:06:27]} 29. hxg6 {[%emt 00:00:12] [%clk 00:02:48]} hxg6 {[%emt
00:00:02] [%clk 00:06:34]} 30. Bd3 {[%emt 00:00:13] [%clk 00:02:46]} Rdf8 {[%emt
00:00:02] [%clk 00:06:43]} 31. Be4 {[%emt 00:00:11] [%clk 00:02:44]} Rh8 {[%emt
00:00:42] [%clk 00:06:11]} 32. Rh1 {[%emt 00:00:08] [%clk 00:02:46]} Re8 {[%emt
00:00:01] [%clk 00:06:20]} 33. Rd3 {[%emt 00:00:53] [%clk 00:02:04]} Re5 {[%emt
00:00:30] [%clk 00:06:00]} 34. Rhd1 {[%emt 00:00:23] [%clk 00:01:51]} Rg5 {[%emt
00:00:59] [%clk 00:05:11]} 35. Rh1 {[%emt 00:01:10] [%clk 00:00:52]} Rf8 {[%emt
00:00:54] [%clk 00:04:26]} 36. g4 {[%emt 00:00:20] [%clk 00:00:42]} Re5 {[%emt
00:00:15] [%clk 00:04:21]} 37. Rdd1 {[%emt 00:00:13] [%clk 00:00:39]} Rd8 {[%emt
00:00:02] [%clk 00:04:30]} 38. Rd3 {[%emt 00:00:02] [%clk 00:00:47]} Ree8 {[%emt
00:00:21] [%clk 00:04:18]} 39. Kf2 {[%emt 00:00:13] [%clk 00:00:44]} Rf8 {[%emt
00:00:57] [%clk 00:03:31]} 40. Ke2 {[%emt 00:00:03] [%clk 00:00:51]} Rh8 {[%emt
00:00:23] [%clk 00:03:19]} 41. Rdd1 {[%emt 00:00:30] [%clk 00:00:31]} d3+ {[%emt
00:00:30] [%clk 00:02:58]} 42. Bxd3 {[%emt 00:00:07] [%clk 00:00:35]} 1/2-1/2

[Site "Europe Echecs"]

[Event "Championnat d'Europe Rapide"]
[Date "2024.12.08"]
[White "Djukic, Nikola"]
[Black "Kukov, Velislav"]
[WhiteElo "2493"]
[BlackElo "2316"]
[Round "10.40"]
[Result "1-0"]
[TimeControl "900+10"]

1. e4 {[%emt 00:00:02] [%clk 00:15:17]} g6 {[%emt 00:00:03] [%clk 00:15:18]} 2.
d4 {[%emt 00:00:02] [%clk 00:15:24]} Bg7 {[%emt 00:00:02] [%clk 00:15:26]} 3.
Nc3 {[%emt 00:00:03] [%clk 00:15:32]} d5 {[%emt 00:00:08] [%clk 00:15:29]} 4.
exd5 {[%emt 00:00:05] [%clk 00:15:36]} Nf6 {[%emt 00:00:02] [%clk 00:15:36]} 5.
Bc4 {[%emt 00:00:19] [%clk 00:15:27]} O-O {[%emt 00:00:33] [%clk 00:15:13]} 6.
Nf3 {[%emt 00:00:04] [%clk 00:15:32]} Nbd7 {[%emt 00:00:05] [%clk 00:15:19]} 7.
O-O {[%emt 00:00:07] [%clk 00:15:35]} Nb6 {[%emt 00:00:03] [%clk 00:15:27]} 8.
Bb3 {[%emt 00:00:02] [%clk 00:15:42]} a5 {[%emt 00:00:02] [%clk 00:15:35]} 9. a4
{[%emt 00:00:09] [%clk 00:15:43]} Nbxd5 {[%emt 00:00:04] [%clk 00:15:41]} 10.
Nxd5 {[%emt 00:00:07] [%clk 00:15:46]} Nxd5 {[%emt 00:00:02] [%clk 00:15:48]}
11. Re1 {[%emt 00:00:10] [%clk 00:15:46]} c6 {[%emt 00:01:35] [%clk 00:14:23]}
12. h3 {[%emt 00:01:03] [%clk 00:14:52]} b6 {[%emt 00:03:51] [%clk 00:10:43]}
13. Bg5 {[%emt 00:02:46] [%clk 00:12:16]} Re8 {[%emt 00:00:41] [%clk 00:10:13]}
14. Qd2 {[%emt 00:01:32] [%clk 00:10:54]} Bb7 {[%emt 00:01:13] [%clk 00:09:11]}
15. Rad1 {[%emt 00:00:16] [%clk 00:10:47]} Qc7 {[%emt 00:00:19] [%clk 00:09:02]}
16. Bh6 {[%emt 00:00:03] [%clk 00:10:54]} e6 {[%emt 00:01:27] [%clk 00:07:45]}
17. Bxg7 {[%emt 00:00:11] [%clk 00:10:53]} Kxg7 {[%emt 00:00:02] [%clk
00:07:53]} 18. Ne5 {[%emt 00:00:26] [%clk 00:10:37]} f6 {[%emt 00:00:55] [%clk
00:07:08]} 19. Nd3 {[%emt 00:00:42] [%clk 00:10:05]} Rad8 {[%emt 00:00:33] [%clk
00:06:46]} 20. c4 {[%emt 00:01:09] [%clk 00:09:06]} Ne7 {[%emt 00:03:47] [%clk
00:03:09]} 21. Rxe6 {[%emt 00:05:57] [%clk 00:03:20]} Rxd4 {[%clk 00:03:15]} 22.
Rde1 {[%emt 00:01:09] [%clk 00:02:24]} c5 {[%emt 00:00:25] [%clk 00:03:01]} 23.
Qe2 {[%emt 00:00:21] [%clk 00:02:12]} Kf7 {[%emt 00:01:14] [%clk 00:01:57]} 24.
f3 {[%emt 00:00:50] [%clk 00:01:31]} Rd7 {[%emt 00:00:31] [%clk 00:01:36]} 25.
Nf2 {[%emt 00:00:03] [%clk 00:01:38]} Red8 {[%emt 00:01:09] [%clk 00:00:38]} 26.
Ng4 {[%emt 00:00:45] [%clk 00:01:03]} Ng8 {[%emt 00:00:01] [%clk 00:00:47]} 27.
Qf2 {[%emt 00:00:09] [%clk 00:01:04]} h5 {[%emt 00:00:31] [%clk 00:00:26]} 28.
Ne3 {[%emt 00:00:34] [%clk 00:00:40]} Qf4 {[%emt 00:00:15] [%clk 00:00:21]} 29.
Nd5 {[%emt 00:00:03] [%clk 00:00:48]} Bxd5 {[%emt 00:00:02] [%clk 00:00:29]} 30.
cxd5 {[%emt 00:00:02] [%clk 00:00:56]} c4 {[%emt 00:00:02] [%clk 00:00:37]} 31.
R6e4 {[%emt 00:00:04] [%clk 00:01:02]} Qd6 {[%emt 00:00:28] [%clk 00:00:20]} 32.
Bxc4 {[%emt 00:00:02] [%clk 00:01:09]} Kg7 {[%emt 00:00:04] [%clk 00:00:26]} 33.
Re6 {[%emt 00:00:16] [%clk 00:01:03]} Qb4 {[%emt 00:00:05] [%clk 00:00:32]} 34.
b3 {[%emt 00:00:08] [%clk 00:01:05]} Rd6 {[%emt 00:00:03] [%clk 00:00:39]} 35.
R6e4 {[%emt 00:00:17] [%clk 00:00:58]} Qc3 {[%emt 00:00:11] [%clk 00:00:38]} 36.
Qg3 {[%emt 00:00:21] [%clk 00:00:47]} f5 {[%emt 00:00:36] [%clk 00:00:13]} 37.
Re6 {[%emt 00:00:01] [%clk 00:00:56]} Rxe6 {[%emt 00:00:05] [%clk 00:00:18]} 38.
Rxe6 {[%emt 00:00:01] [%clk 00:01:04]} Nf6 {[%emt 00:00:02] [%clk 00:00:26]} 39.
Qc7+ {[%emt 00:00:01] [%clk 00:01:13]} Rd7 {[%emt 00:00:02] [%clk 00:00:35]} 40.
Qxb6 {[%emt 00:00:04] [%clk 00:01:18]} Qc1+ {[%emt 00:00:02] [%clk 00:00:44]}
41. Kf2 {[%emt 00:00:10] [%clk 00:01:17]} Qb2+ {[%emt 00:00:10] [%clk 00:00:44]}
42. Re2 {[%emt 00:00:02] [%clk 00:01:26]} Qc3 {[%emt 00:00:05] [%clk 00:00:50]}
43. Qe6 {[%emt 00:00:38] [%clk 00:00:56]} h4 {[%emt 00:00:11] [%clk 00:00:50]}
44. Qe5 {[%emt 00:00:06] [%clk 00:01:00]} Qb4 {[%emt 00:00:12] [%clk 00:00:49]}
45. Qd4 {[%emt 00:00:04] [%clk 00:01:06]} Rxd5 {[%emt 00:00:10] [%clk 00:00:50]}
46. Qxh4 {[%emt 00:00:03] [%clk 00:01:12]} Qc5+ {[%emt 00:00:05] [%clk
00:00:55]} 47. Kf1 {[%emt 00:00:03] [%clk 00:01:19]} Rd1+ {[%emt 00:00:03] [%clk
00:01:02]} 48. Re1 {[%emt 00:00:01] [%clk 00:01:27]} Rd2 {[%emt 00:00:21] [%clk
00:00:51]} 49. Re6 {[%emt 00:00:15] [%clk 00:01:22]} Ng8 {[%emt 00:00:43] [%clk
00:00:19]} 50. Qe1 {[%emt 00:00:11] [%clk 00:01:20]} Nf6 {[%emt 00:00:17] [%clk
00:00:14]} 1-0

[Site "Europe Echecs"]

[Event "Championnat d'Europe Rapide"]
[Date "2024.12.08"]
[White "Ribeiro, Gustavo"]
[Black "Mastrovasilis, Dimitrios"]
[WhiteElo "2241"]
[BlackElo "2537"]
[Round "10.41"]
[Result "1/2-1/2"]
[TimeControl "900+10"]

1. e4 {[%emt 00:00:01] [%clk 00:15:18]} d5 {[%emt 00:00:03] [%clk 00:15:17]} 2.
exd5 {[%emt 00:00:02] [%clk 00:15:27]} Qxd5 {[%emt 00:00:03] [%clk 00:15:24]} 3.
Nc3 {[%emt 00:00:01] [%clk 00:15:35]} Qd6 {[%emt 00:00:09] [%clk 00:15:25]} 4.
Ne4 {[%emt 00:00:08] [%clk 00:15:38]} Qd5 {[%emt 00:00:54]} 5. Nc3 {[%clk
00:15:13]} Qa5 {[%emt 00:00:02] [%clk 00:15:25]} 6. Bc4 {[%emt 00:00:02] [%clk
00:15:21]} Nf6 {[%emt 00:00:17] [%clk 00:15:17]} 7. Nge2 {[%emt 00:00:16] [%clk
00:15:14]} c6 {[%emt 00:00:31] [%clk 00:14:57]} 8. d4 {[%emt 00:00:15] [%clk
00:15:10]} g6 {[%emt 00:00:13] [%clk 00:14:53]} 9. Bd2 {[%emt 00:00:09] [%clk
00:15:11]} Qb6 {[%emt 00:00:23] [%clk 00:14:40]} 10. O-O {[%emt 00:00:42] [%clk
00:14:39]} Bg7 {[%emt 00:00:24] [%clk 00:14:25]} 11. Qc1 {[%emt 00:00:05] [%clk
00:14:43]} O-O {[%emt 00:00:13] [%clk 00:14:22]} 12. Re1 {[%emt 00:00:13] [%clk
00:14:41]} Nbd7 {[%emt 00:01:09] [%clk 00:13:22]} 13. Bh6 {[%emt 00:01:39] [%clk
00:13:12]} e5 {[%emt 00:00:38] [%clk 00:12:54]} 14. Bxg7 {[%emt 00:01:45] [%clk
00:11:38]} Kxg7 {[%emt 00:00:02] [%clk 00:13:02]} 15. Qe3 {[%emt 00:00:01] [%clk
00:11:46]} Re8 {[%emt 00:01:13] [%clk 00:11:59]} 16. dxe5 {[%emt 00:00:30] [%clk
00:11:27]} Nxe5 {[%emt 00:01:29] [%clk 00:10:40]} 17. Qxb6 {[%emt 00:00:12]
[%clk 00:11:25]} axb6 {[%emt 00:00:02] [%clk 00:10:48]} 18. Bb3 {[%emt 00:00:02]
[%clk 00:11:32]} Be6 {[%emt 00:03:00] [%clk 00:07:58]} 19. Bxe6 {[%emt 00:00:08]
[%clk 00:11:35]} Rxe6 {[%emt 00:00:01] [%clk 00:08:07]} 20. Nd4 {[%emt 00:00:08]
[%clk 00:11:37]} Ree8 {[%emt 00:00:11] [%clk 00:08:05]} 21. a4 {[%emt 00:01:19]
[%clk 00:10:28]} Rad8 {[%emt 00:00:18] [%clk 00:07:56]} 22. Rad1 {[%emt
00:00:06] [%clk 00:10:32]} Rxd4 {[%emt 00:01:43] [%clk 00:06:24]} 23. Rxd4
{[%emt 00:00:09] [%clk 00:10:33]} Nf3+ {[%emt 00:00:02] [%clk 00:06:32]} 24.
gxf3 {[%emt 00:00:01] [%clk 00:10:41]} Rxe1+ {[%emt 00:00:02] [%clk 00:06:41]}
25. Kg2 {[%emt 00:00:01] [%clk 00:10:50]} Rc1 {[%emt 00:01:45] [%clk 00:05:06]}
26. Rb4 {[%emt 00:00:21] [%clk 00:10:39]} Nd7 {[%emt 00:00:06] [%clk 00:05:10]}
27. Rd4 {[%emt 00:00:01] [%clk 00:10:48]} Nc5 {[%emt 00:00:17] [%clk 00:05:04]}
28. Rb4 {[%emt 00:00:05] [%clk 00:10:53]} Ne6 {[%emt 00:01:56] [%clk 00:03:18]}
29. f4 {[%emt 00:00:28] [%clk 00:10:35]} b5 {[%emt 00:00:35] [%clk 00:02:53]}
30. f5 {[%emt 00:00:57] [%clk 00:09:48]} gxf5 {[%emt 00:00:04] [%clk 00:03:00]}
31. axb5 {[%emt 00:00:02] [%clk 00:09:56]} c5 {[%emt 00:00:01] [%clk 00:03:09]}
32. Ra4 {[%emt 00:00:25] [%clk 00:09:42]} Rxc2 {[%emt 00:00:20] [%clk 00:02:58]}
33. Ra7 {[%emt 00:00:04] [%clk 00:09:47]} b6 {[%emt 00:00:14] [%clk 00:02:55]}
34. Rb7 {[%emt 00:00:52] [%clk 00:09:05]} Rxb2 {[%emt 00:00:15] [%clk 00:02:50]}
35. Rxb6 {[%emt 00:00:02] [%clk 00:09:14]} Nd4 {[%emt 00:01:51] [%clk 00:01:08]}
36. Na4 {[%emt 00:00:38] [%clk 00:08:46]} Rc2 {[%emt 00:00:05] [%clk 00:01:14]}
37. Rd6 {[%emt 00:00:51] [%clk 00:08:05]} Nxb5 {[%emt 00:00:40] [%clk 00:00:44]}
38. Rd5 {[%emt 00:00:02] [%clk 00:08:13]} Nc7 {[%emt 00:00:17] [%clk 00:00:37]}
39. Rxc5 {[%emt 00:00:03] [%clk 00:08:20]} Rxc5 {[%emt 00:00:01] [%clk
00:00:46]} 40. Nxc5 {[%clk 00:08:29]} Ne6 {[%emt 00:00:03] [%clk 00:00:54]} 41.
Nd7 {[%emt 00:00:03] [%clk 00:08:35]} Kg6 {[%emt 00:00:03] [%clk 00:01:01]} 42.
Kg3 {[%emt 00:00:06] [%clk 00:08:39]} Kg5 {[%emt 00:00:06] [%clk 00:01:06]} 43.
f4+ {[%emt 00:00:14] [%clk 00:08:34]} Kg6 {[%emt 00:00:02] [%clk 00:01:14]} 44.
Nb6 {[%emt 00:00:36] [%clk 00:08:08]} Nc7 {[%emt 00:00:16] [%clk 00:01:08]} 45.
Nd7 {[%emt 00:00:01] [%clk 00:08:17]} Nd5 {[%emt 00:00:05] [%clk 00:01:13]} 46.
Nf8+ {[%emt 00:00:04] [%clk 00:08:23]} Kg7 {[%emt 00:00:02] [%clk 00:01:22]} 47.
Nd7 {[%clk 00:08:32]} Nf6 {[%emt 00:00:30] [%clk 00:01:02]} 48. Nb6 {[%emt
00:00:09] [%clk 00:08:33]} Ne4+ {[%emt 00:00:03] [%clk 00:01:08]} 49. Kf3 {[%emt
00:00:01] [%clk 00:08:42]} Kf6 {[%emt 00:00:10] [%clk 00:01:09]} 50. Nd5+ {[%emt
00:00:15] [%clk 00:08:36]} Ke6 {[%emt 00:00:02] [%clk 00:01:17]} 51. Nc7+ {[%emt
00:00:01] [%clk 00:08:45]} Kd6 {[%emt 00:00:09] [%clk 00:01:18]} 52. Ne8+ {[%emt
00:00:10] [%clk 00:08:45]} Kd5 {[%emt 00:00:14] [%clk 00:01:14]} 53. Ng7 {[%emt
00:00:12] [%clk 00:08:43]} Nd6 {[%clk 00:01:23]} 54. Ke3 {[%emt 00:00:07] [%clk
00:08:46]} h6 {[%emt 00:00:34] [%clk 00:00:59]} 55. Nh5 {[%emt 00:00:11] [%clk
00:08:46]} Ne8 {[%emt 00:00:31] [%clk 00:00:38]} 56. Kd3 {[%emt 00:00:08] [%clk
00:08:48]} Nc7 {[%emt 00:00:18] [%clk 00:00:31]} 57. Ng7 {[%emt 00:00:07] [%clk
00:08:51]} Ne6 {[%emt 00:00:15] [%clk 00:00:26]} 58. Nxf5 {[%emt 00:00:02] [%clk
00:08:58]} Nxf4+ {[%emt 00:00:07] [%clk 00:00:28]} 59. Ke3 {[%emt 00:00:01]
[%clk 00:09:07]} Ke5 {[%emt 00:00:03] [%clk 00:00:35]} 60. Nxh6 {[%emt 00:00:02]
[%clk 00:09:15]} Nd5+ {[%emt 00:00:04] [%clk 00:00:41]} 61. Kf2 {[%emt 00:00:02]
[%clk 00:09:23]} f5 {[%emt 00:00:01] [%clk 00:00:49]} 62. Nxf5 {[%emt 00:00:02]
[%clk 00:09:32]} Kxf5 {[%emt 00:00:02] [%clk 00:00:57]} 63. h4 {[%clk 00:09:41]}
Kg4 {[%emt 00:00:01] [%clk 00:01:06]} 64. Ke1 {[%emt 00:00:01] [%clk 00:09:50]}
Kxh4 {[%emt 00:00:02] [%clk 00:01:02]} 1/2-1/2

[Site "Europe Echecs"]

[Event "Championnat d'Europe Rapide"]
[Date "2024.12.08"]
[White "Alienkin, Aleksander"]
[Black "Tudor, Henry Edward"]
[WhiteElo "2337"]
[BlackElo "2375"]
[Round "10.42"]
[Result "1-0"]
[TimeControl "900+10"]

1. d4 {[%emt 00:00:52] [%clk 00:14:23]} Nf6 {[%emt 00:00:07] [%clk 00:15:16]} 2.
Nc3 {[%emt 00:00:20] [%clk 00:14:13]} d5 {[%emt 00:00:04] [%clk 00:15:22]} 3.
Bg5 {[%emt 00:00:08] [%clk 00:14:15]} Nbd7 {[%emt 00:00:19] [%clk 00:15:13]} 4.
Nf3 {[%emt 00:00:03] [%clk 00:14:22]} h6 {[%emt 00:00:04] [%clk 00:15:20]} 5.
Bh4 {[%emt 00:00:04] [%clk 00:14:28]} e6 {[%emt 00:00:08] [%clk 00:15:22]} 6. e3
{[%emt 00:00:12] [%clk 00:14:27]} Bb4 {[%emt 00:00:05] [%clk 00:15:27]} 7. Bd3
{[%emt 00:00:06] [%clk 00:14:31]} c5 {[%emt 00:00:13] [%clk 00:15:24]} 8. dxc5
{[%emt 00:00:28] [%clk 00:14:12]} Nxc5 {[%emt 00:01:12] [%clk 00:14:22]} 9. O-O
{[%emt 00:00:20] [%clk 00:14:01]} O-O {[%emt 00:00:19] [%clk 00:14:15]} 10. Ne2
{[%emt 00:00:45] [%clk 00:13:26]} Nxd3 {[%emt 00:01:42] [%clk 00:12:43]} 11.
cxd3 {[%emt 00:00:02] [%clk 00:13:34]} Be7 {[%emt 00:00:04] [%clk 00:12:49]} 12.
Ne5 {[%emt 00:00:20] [%clk 00:13:24]} Nd7 {[%emt 00:00:49] [%clk 00:12:11]} 13.
Bxe7 {[%emt 00:00:13] [%clk 00:13:21]} Qxe7 {[%emt 00:00:01] [%clk 00:12:20]}
14. Nxd7 {[%emt 00:00:25] [%clk 00:13:05]} Bxd7 {[%emt 00:00:02] [%clk
00:12:26]} 15. Qb3 {[%emt 00:00:14] [%clk 00:13:02]} b6 {[%emt 00:00:46] [%clk
00:11:50]} 16. Rac1 {[%emt 00:00:16] [%clk 00:12:58]} Rfc8 {[%emt 00:00:09]
[%clk 00:11:50]} 17. h3 {[%emt 00:00:11] [%clk 00:12:57]} Kf8 {[%emt 00:00:42]
[%clk 00:11:18]} 18. d4 {[%emt 00:00:24] [%clk 00:12:43]} Qd6 {[%emt 00:02:17]
[%clk 00:09:10]} 19. Nf4 {[%emt 00:00:09] [%clk 00:12:44]} Rxc1 {[%emt 00:01:09]
[%clk 00:08:12]} 20. Rxc1 {[%emt 00:00:02] [%clk 00:12:52]} Rc8 {[%emt 00:00:01]
[%clk 00:08:21]} 21. Rxc8+ {[%emt 00:00:30] [%clk 00:12:33]} Bxc8 {[%emt
00:00:01] [%clk 00:08:30]} 22. Qc2 {[%emt 00:00:02] [%clk 00:12:41]} Bb7 {[%emt
00:01:55] [%clk 00:06:46]} 23. Qh7 {[%emt 00:00:09] [%clk 00:12:41]} e5 {[%emt
00:01:07] [%clk 00:05:49]} 24. Qh8+ {[%emt 00:05:04] [%clk 00:07:46]} Ke7 {[%clk
00:05:59]} 25. Nh5 {[%emt 00:00:02] [%clk 00:07:54]} exd4 {[%emt 00:02:12] [%clk
00:03:58]} 26. Nxg7 {[%emt 00:01:13] [%clk 00:06:50]} Qg6 {[%emt 00:01:48] [%clk
00:02:21]} 27. g4 {[%emt 00:01:12] [%clk 00:05:47]} d3 {[%emt 00:02:22]} 28.
Qe8+ {[%emt 00:01:03] [%clk 00:04:52]} Kd6 {[%emt 00:00:02] [%clk 00:00:19]} 29.
Nf5+ {[%emt 00:01:05] [%clk 00:03:56]} Kc7 {[%emt 00:00:15] [%clk 00:00:14]} 30.
Qe5+ {[%emt 00:00:36] [%clk 00:03:30]} Kd7 {[%emt 00:00:06] [%clk 00:00:15]} 31.
Qe7+ {[%emt 00:00:50] [%clk 00:02:52]} Kc8 {[%emt 00:00:03] [%clk 00:00:23]} 32.
Nd6+ {[%emt 00:00:14] [%clk 00:02:48]} Qxd6 {[%emt 00:00:02] [%clk 00:00:31]}
33. Qxd6 {[%emt 00:00:01] [%clk 00:02:57]} d2 {[%emt 00:00:01] [%clk 00:00:40]}
34. Qf8+ {[%emt 00:00:01] [%clk 00:03:06]} Kd7 {[%emt 00:00:28] [%clk 00:00:23]}
35. Qxf7+ {[%emt 00:00:02] [%clk 00:03:14]} Kc6 {[%emt 00:00:14] [%clk
00:00:19]} 36. Qg6+ {[%emt 00:00:04] [%clk 00:03:19]} 1-0

[Site "Europe Echecs"]